bitfinex-derivatives/quotes_BTCF0:USTF0_20250527
["timestamp","ask_amount","ask_price","bid_price","bid_amount"]
[1748308250935,2.05317941,109000.0,108990.0,0.06653089]
[1748308251443,2.05317941,109000.0,108990.0,0.06641089]
[1748308251646,2.05317941,109000.0,108990.0,0.06653089]
[1748308252036,2.05317941,109000.0,108990.0,0.09833089]
[1748308252237,2.17108109,109000.0,108990.0,0.09833089]
[1748308252733,1.24672109,109000.0,108990.0,9e-08]
[1748308252926,1.85217323,109000.0,108990.0,0.3034514]
[1748308253129,2.01771047,109000.0,108990.0,0.1522]
[1748308253330,2.01771047,109000.0,108990.0,0.2151]
[1748308253530,2.04481047,109000.0,108990.0,0.2151]
[1748308253733,1.98310879,109000.0,108990.0,0.21522]
[1748308253933,2.10101047,109000.0,108990.0,0.2151]
[1748308254133,2.10101047,109000.0,108990.0,0.21522]
[1748308254438,2.10101047,109000.0,108990.0,0.1829]
[1748308254633,2.04423968,109000.0,108990.0,0.18302]
[1748308255333,2.26322047,109000.0,108990.0,0.1518826]
[1748308255540,2.26322047,109000.0,108990.0,0.03042]
[1748308255836,0.183502,108960.0,108950.0,0.01349196]
[1748308256136,1.75119794,108960.0,108950.0,0.17349794]
[1748308256338,1.95067794,108960.0,108950.0,0.35701674]
[1748308256535,1.02963794,108960.0,108950.0,0.35701674]
[1748308257037,1.02963794,108960.0,108950.0,0.3459188]
[1748308257341,1.03163794,108960.0,108950.0,0.4160188]
[1748308258042,1.03163794,108960.0,108950.0,0.41735922]
[1748308258542,0.19027794,108960.0,108950.0,0.41735922]
[1748308258746,1.03167794,108960.0,108950.0,0.41735922]
[1748308259141,1.03167794,108960.0,108950.0,0.41802943]
[1748308259537,1.04568688,108960.0,108950.0,0.41802943]
[1748308259943,1.40648688,108960.0,108950.0,0.41802943]
[1748308262938,0.56508688,108960.0,108950.0,0.41802943]
[1748308263138,1.40724688,108960.0,108950.0,0.41802943]
[1748308264047,1.51509136,108960.0,108950.0,0.52587391]
[1748308264246,1.40724688,108960.0,108950.0,0.52587391]
[1748308264747,1.40724688,108960.0,108950.0,0.41802943]
[1748308264947,1.51509136,108960.0,108950.0,0.41802943]
[1748308265142,1.51509136,108960.0,108950.0,0.52587391]
[1748308265348,1.51509136,108960.0,108950.0,0.23463063]
[1748308265843,1.51509136,108960.0,108950.0,0.24803433]
[1748308266147,1.51509136,108960.0,108950.0,0.24791433]
[1748308266342,1.51509136,108960.0,108950.0,0.24803433]
[1748308266546,1.54229136,108960.0,108950.0,0.24803433]
[1748308266751,0.36757594,108960.0,108950.0,0.47575881]
[1748308266953,1.16479544,108970.0,108960.0,0.1835019]
[1748308267136,1.16479544,108970.0,108960.0,0.69409456]
[1748308267442,1.16479544,108970.0,108960.0,0.69610519]
[1748308267640,0.00151484,108970.0,108960.0,1.05690519]
[1748308267843,1.77286134,108990.0,108980.0,0.1834682]
[1748308268046,1.6769491,108990.0,108980.0,0.42503241]
[1748308268244,2.1060291,108990.0,108980.0,0.44044674]
[1748308268448,1.6769491,108990.0,108980.0,0.44044674]
[1748308268749,2.5191091,108990.0,108980.0,0.44044674]
[1748308269553,2.5191091,108990.0,108980.0,0.32257991]
[1748308269749,2.5191091,108990.0,108980.0,0.44044674]
[1748308270047,2.5211091,108990.0,108980.0,0.44144674]
[1748308270943,2.5211091,108990.0,108980.0,0.51254674]
[1748308271144,2.1080291,108990.0,108980.0,0.51254674]
[1748308271352,2.5211091,108990.0,108980.0,0.51660384]
[1748308271546,2.5211091,108990.0,108980.0,0.39873701]
[1748308271852,2.5520091,108990.0,108980.0,0.51660384]
[1748308272043,2.5659188,108990.0,108980.0,0.51660384]
[1748308272655,2.5659188,108990.0,108980.0,0.20526881]
[1748308272858,2.5982188,108990.0,108980.0,0.20538881]
[1748308273643,2.9582188,108990.0,108980.0,0.20538881]
[1748308273852,2.9901188,108990.0,108980.0,0.20526881]
[1748308274160,2.9901188,108990.0,108980.0,0.20538881]
[1748308274644,2.9901188,108990.0,108980.0,1e-08]
[1748308274951,2.1479588,108990.0,108980.0,0.01]
[1748308275154,0.1834682,108980.0,108970.0,0.30554884]
[1748308275346,0.9473682,108980.0,108970.0,0.29306504]
[1748308276356,0.9473682,108980.0,108970.0,0.17519821]
[1748308276555,0.9473682,108980.0,108970.0,0.17113751]
[1748308276957,0.9473682,108980.0,108970.0,0.17213751]
[1748308277254,0.9473682,108980.0,108970.0,0.17313751]
[1748308278254,0.9473682,108980.0,108970.0,0.14213751]
[1748308278958,0.9473682,108980.0,108970.0,0.14225751]
[1748308279754,1.06523503,108980.0,108970.0,0.14225751]
[1748308280259,0.3934682,108980.0,108970.0,0.25012434]
[1748308280455,1.3956282,108980.0,108970.0,0.65097764]
[1748308280660,1.3956282,108980.0,108970.0,0.30375751]
[1748308280861,1.3956282,108980.0,108970.0,0.28375751]
[1748308281051,1.4279282,108980.0,108970.0,0.28375751]
[1748308281358,1.4601282,108980.0,108970.0,0.28363751]
[1748308281553,1.8209282,108980.0,108970.0,0.34724251]
[1748308281858,0.9465682,108980.0,108970.0,0.46510934]
[1748308282062,1.4187282,108980.0,108970.0,0.47510934]
[1748308282250,1.7387282,108980.0,108970.0,0.47510934]
[1748308282747,1.7387282,108980.0,108970.0,0.35724251]
[1748308282946,1.7387282,108980.0,108970.0,0.47510934]
[1748308283158,1.3779282,108980.0,108970.0,0.47510934]
[1748308283350,1.7387282,108980.0,108970.0,0.47510934]
[1748308283754,1.3779282,108980.0,108970.0,0.47410934]
[1748308284057,1.7397282,108980.0,108970.0,0.47410934]
[1748308284259,1.3789282,108980.0,108970.0,0.47410934]
[1748308284658,1.7397282,108980.0,108970.0,0.47410934]
[1748308284853,1.7397282,108980.0,108970.0,0.47310934]
[1748308285154,1.7417282,108980.0,108970.0,0.29062434]
[1748308285358,1.7744282,108980.0,108970.0,0.47410944]
[1748308285760,1.7744282,108980.0,108970.0,0.16275751]
[1748308285958,1.8047282,108980.0,108970.0,0.16263751]
[1748308286150,1.8047282,108980.0,108970.0,0.16275751]
[1748308286952,1.8047282,108980.0,108970.0,0.13125751]
[1748308287157,1.92259503,108980.0,108970.0,0.13125751]
[1748308287353,1.92259503,108980.0,108970.0,0.14423352]
[1748308287659,1.8047282,108980.0,108970.0,0.14435352]
[1748308287855,1.8047282,108980.0,108970.0,0.17615352]
[1748308289048,1.88973605,108980.0,108970.0,0.17615352]
[1748308290766,1.04757605,108980.0,108970.0,0.20715352]
[1748308290960,1.88973605,108980.0,108970.0,0.20715352]
[1748308292064,1.1553949,108980.0,108970.0,0.20715352]
[1748308292261,1.85859605,108980.0,108970.0,0.49845747]
[1748308292465,1.82589605,108980.0,108970.0,0.49845747]
[1748308292659,1.41281605,108980.0,108970.0,0.49845747]
[1748308292865,0.62377605,108980.0,108970.0,0.61845747]
[1748308293164,1.46509605,108980.0,108970.0,0.61845747]
[1748308293663,1.3800882,108980.0,108970.0,0.51063862]
[1748308293865,1.7408882,108980.0,108970.0,0.61845747]
[1748308294064,1.7408882,108980.0,108970.0,0.51063862]
[1748308294667,1.7737882,108980.0,108970.0,0.51063862]
[1748308294962,0.5716682,108980.0,108970.0,0.62854845]
[1748308295266,1.4129882,108980.0,108970.0,0.62854845]
[1748308295665,1.7737882,108980.0,108970.0,0.62854845]
[1748308295868,0.5716682,108980.0,108970.0,0.62854845]
[1748308296061,1.4129882,108980.0,108970.0,0.62854845]
[1748308296362,0.5716682,108980.0,108970.0,0.62854845]
[1748308296557,0.5387682,108980.0,108970.0,0.62854845]
[1748308296757,0.53124,108980.0,108970.0,0.62854845]
[1748308297065,1.1277882,108980.0,108970.0,0.97625244]
[1748308298062,1.1277882,108980.0,108970.0,0.85834261]
[1748308298258,1.1277882,108980.0,108970.0,0.97625244]
[1748308298868,0.2864682,108980.0,108970.0,0.97625244]
[1748308299070,1.1277882,108980.0,108970.0,0.98167376]
[1748308299461,0.2864682,108980.0,108970.0,0.98167376]
[1748308299763,1.1277882,108980.0,108970.0,0.98167376]
[1748308301675,1.1601882,108980.0,108970.0,0.98167376]
[1748308302077,1.1601882,108980.0,108970.0,0.50296393]
[1748308302078,1.5209882,108980.0,108970.0,0.50296393]
[1748308302272,1.7409882,108980.0,108970.0,0.50296373]
[1748308302585,1.7711882,108980.0,108970.0,0.50296373]
[1748308303082,1.7711882,108980.0,108970.0,0.51044134]
[1748308303284,1.3801882,108980.0,108970.0,0.51044134]
[1748308303485,1.7409882,108980.0,108970.0,0.51044134]
[1748308303781,1.7711882,108980.0,108970.0,0.51044134]
[1748308304179,1.3801882,108980.0,108970.0,0.62835117]
[1748308304784,1.3801882,108980.0,108970.0,0.51044134]
[1748308305185,1.3801882,108980.0,108970.0,0.62835117]
[1748308305583,1.7409882,108980.0,108970.0,0.62835117]
[1748308305785,1.7409882,108980.0,108970.0,0.46033744]
[1748308306086,1.3801882,108980.0,108970.0,0.37033744]
[1748308306674,1.7409882,108980.0,108970.0,0.37033744]
[1748308307081,1.3801882,108980.0,108970.0,0.37033744]
[1748308308186,1.7409882,108980.0,108970.0,0.37033744]
[1748308308485,1.1401482,108980.0,108970.0,0.48033744]
[1748308308690,1.1401482,108980.0,108970.0,0.46743851]
[1748308309187,0.0567178,108990.0,108980.0,0.1834682]
[1748308309480,0.0567178,108990.0,108980.0,1.12053403]
[1748308309680,0.2401692,108990.0,108980.0,1.12053403]
[1748308309887,0.0567178,108990.0,108980.0,1.12053403]
[1748308310086,0.0879178,108990.0,108980.0,1.11053403]
[1748308310586,0.0879178,108990.0,108980.0,1.11353403]
[1748308310788,0.0312,108990.0,108980.0,1.12166456]
[1748308310991,0.0342,108990.0,108980.0,1.11966456]
[1748308311190,0.0342,108990.0,108980.0,1.12066456]
[1748308311500,0.0342,108990.0,108980.0,1.02890856]
[1748308311682,0.0312,108990.0,108980.0,1.02890856]
[1748308312686,0.0312,108990.0,108980.0,1.03432575]
[1748308312888,0.87248,108990.0,108980.0,1.03432575]
[1748308313282,1.0559313,108990.0,108980.0,0.55561592]
[1748308313689,1.4167313,108990.0,108980.0,0.55561592]
[1748308313882,1.4663313,108990.0,108980.0,0.55561592]
[1748308315782,1.4663313,108990.0,108980.0,0.5420682]
[1748308315984,1.8271313,108990.0,108980.0,0.64985194]
[1748308316890,1.8271313,108990.0,108980.0,0.61815194]
[1748308319595,1.8601313,108990.0,108980.0,0.61815194]
[1748308320792,1.4993313,108990.0,108980.0,0.61815194]
[1748308320993,1.8601313,108990.0,108980.0,0.61815194]
[1748308321595,1.8600913,108990.0,108980.0,0.61815194]
[1748308322586,1.0188513,108990.0,108980.0,0.61815194]
[1748308322782,1.8565713,108990.0,108980.0,0.61815194]
[1748308323096,1.0188513,108990.0,108980.0,0.61815194]
[1748308323295,1.8565713,108990.0,108980.0,0.61815194]
[1748308323594,1.8565713,108990.0,108980.0,0.36978374]
[1748308323798,3.00515504,108990.0,108980.0,0.262]
[1748308323995,3.00515504,108990.0,108980.0,0.4454682]
[1748308324296,2.8973713,108990.0,108980.0,0.55325194]
[1748308325293,2.8973713,108990.0,108980.0,0.4454682]
[1748308325500,2.8973713,108990.0,108980.0,0.55325194]
[1748308328193,2.9540891,108990.0,108980.0,0.55325194]
[1748308329202,3.03909695,108990.0,108980.0,0.55325194]
[1748308329400,3.14688069,108990.0,108980.0,0.262]
[1748308330102,3.03909695,108990.0,108980.0,0.56612619]
[1748308330402,3.14688069,108990.0,108980.0,0.45734245]
[1748308330701,3.14888069,108990.0,108980.0,0.45734245]
[1748308330899,3.14888069,108990.0,108980.0,0.27387435]
[1748308331198,3.09216289,108990.0,108980.0,0.15387435]
[1748308331391,0.1834682,108980.0,108970.0,5e-08]
[1748308331594,0.1834682,108980.0,108970.0,0.01000005]
[1748308331595,1.02845194,108980.0,108970.0,0.01000005]
[1748308332292,1.02845194,108980.0,108970.0,0.01]
[1748308332893,1.02945194,108980.0,108970.0,0.01]
[1748308333304,1.14327538,108980.0,108970.0,0.01]
[1748308333595,1.14327538,108980.0,108970.0,0.011]
[1748308336891,1.14327538,108980.0,108970.0,0.194485]
[1748308337097,2.07645164,108980.0,108970.0,0.30226874]
[1748308337399,2.91425164,108980.0,108970.0,0.011]
[1748308337598,2.91425164,108980.0,108970.0,0.11878374]
[1748308337803,2.9420475,108980.0,108970.0,0.11878374]
[1748308338496,2.9420475,108980.0,108970.0,0.30226874]
[1748308338895,2.9420475,108980.0,108970.0,0.33326874]
[1748308339504,2.1042475,108980.0,108970.0,0.33326874]
[1748308339704,2.9420475,108980.0,108970.0,0.36556874]
[1748308339906,2.8004282,108980.0,108970.0,0.36556874]
[1748308340204,2.8004282,108980.0,108970.0,0.39746874]
[1748308340504,2.8004682,108980.0,108970.0,0.39746874]
[1748308340801,1.9626282,108980.0,108970.0,0.39746874]
[1748308341004,2.3541882,108980.0,108970.0,0.52746874]
[1748308341203,0.2176681,108980.0,108970.0,0.88826874]
[1748308341504,1.4055081,108980.0,108970.0,0.52746874]
[1748308343506,1.4055081,108980.0,108970.0,0.419685]
[1748308343799,0.5676681,108980.0,108970.0,0.34398374]
[1748308344005,1.7972681,108980.0,108970.0,0.2362]
[1748308344205,0.9594681,108980.0,108970.0,0.42374629]
[1748308344407,1.7972681,108980.0,108970.0,0.42374629]
[1748308344703,1.7972681,108980.0,108970.0,0.53153003]
[1748308344901,0.9284681,108980.0,108970.0,0.53153003]
[1748308345098,1.7662681,108980.0,108970.0,0.53153003]
[1748308345906,1.7662681,108980.0,108970.0,0.52746874]
[1748308349209,0.9284681,108980.0,108970.0,0.52746874]
[1748308349507,0.0342,108980.0,108970.0,0.88826874]
[1748308349707,0.8388,108980.0,108970.0,0.88826874]
[1748308349902,0.1844681,108980.0,108970.0,0.88826874]
[1748308350107,0.6091881,108980.0,108970.0,0.88826874]
[1748308350312,1.0540681,108980.0,108970.0,0.90181646]
[1748308350803,1.0222681,108980.0,108970.0,0.90181646]
[1748308351002,0.1844681,108980.0,108970.0,0.90181646]
[1748308351203,0.001,108980.0,108970.0,0.99358046]
[1748308351408,0.8388,108980.0,108970.0,1.16358046]
[1748308351710,0.001,108980.0,108970.0,1.15544993]
[1748308351907,0.8388,108980.0,108970.0,1.15544993]
[1748308353310,0.8388,108980.0,108970.0,1.16358046]
[1748308353710,1.022268,108980.0,108970.0,1.16358046]
[1748308354813,1.019348,108980.0,108970.0,1.16358046]
[1748308356306,0.83588,108980.0,108970.0,1.16358046]
[1748308357513,0.83588,108980.0,108970.0,1.07181646]
[1748308357720,0.001,108980.0,108970.0,1.07181646]
[1748308357913,0.83588,108980.0,108970.0,1.07181646]
[1748308358617,0.001,108980.0,108970.0,1.16358046]
[1748308358817,0.001,108980.0,108970.0,1.4513642]
[1748308359016,0.41404,108980.0,108970.0,1.4513642]
[1748308359518,0.001,108980.0,108970.0,1.4513642]
[1748308359813,0.41404,108980.0,108970.0,1.4513642]
[1748308360014,0.41404,108980.0,108970.0,1.44860738]
[1748308360216,0.001,108980.0,108970.0,1.44860738]
[1748308360418,0.41404,108980.0,108970.0,1.44860738]
[1748308360616,0.001,108980.0,108970.0,1.44860738]
[1748308361116,0.414,108980.0,108970.0,1.34082364]
[1748308361317,0.001,108980.0,108970.0,1.34082364]
[1748308361507,0.03361446,109000.0,108990.0,0.1834512]
[1748308361702,0.41401752,109000.0,108990.0,1.02081256]
[1748308361916,0.41401752,109000.0,108990.0,1.11851256]
[1748308362614,0.00101752,109000.0,108990.0,1.11851256]
[1748308362820,0.00401752,109000.0,108990.0,1.49385536]
[1748308363310,0.00601752,109000.0,108990.0,1.93560336]
[1748308363617,0.00301752,109000.0,108990.0,1.9486215]
[1748308363809,0.00301752,109000.0,108990.0,1.9496215]
[1748308363810,0.001,109000.0,108990.0,1.9496215]
[1748308364515,0.001,109000.0,108990.0,1.9350787]
[1748308364713,0.001,109000.0,108990.0,1.9380787]
[1748308365231,0.001,109000.0,108990.0,1.94730213]
[1748308365511,0.414,109000.0,108990.0,1.94730213]
[1748308366112,0.414,109000.0,108990.0,1.94930213]
[1748308366713,0.414,109000.0,108990.0,1.73930213]
[1748308367513,0.414,109000.0,108990.0,1.52373465]
[1748308367820,0.6406344,109000.0,108990.0,0.79492882]
[1748308368020,0.6736344,109000.0,108990.0,0.79492882]
[1748308368419,0.6736344,109000.0,108990.0,0.65492882]
[1748308369018,0.6736344,109000.0,108990.0,1.01572882]
[1748308369519,0.6736344,109000.0,108990.0,1.02519191]
[1748308369820,0.6736344,109000.0,108990.0,1.03428534]
[1748308370011,0.6636344,109000.0,108990.0,1.14206908]
[1748308370213,0.6636344,109000.0,108990.0,1.03428534]
[1748308370512,0.4802,109000.0,108990.0,1.14206908]
[1748308371020,0.4802,109000.0,108990.0,1.13801447]
[1748308372322,0.0342,109000.0,108990.0,1.13801447]
[1748308372523,0.44716,109000.0,108990.0,1.15801447]
[1748308372728,0.44716,109000.0,108990.0,1.16613068]
[1748308373621,0.44716,109000.0,108990.0,1.1607222]
[1748308374824,0.0342,109000.0,108990.0,1.1607222]
[1748308375214,0.44716,109000.0,108990.0,1.4707222]
[1748308375417,0.00013751,109010.0,109000.0,0.1834344]
[1748308375616,0.00013751,109010.0,109000.0,1.30801508]
[1748308375817,0.41309751,109010.0,109000.0,1.30801508]
[1748308376225,0.00013751,109010.0,109000.0,1.39975508]
[1748308376426,0.41305751,109010.0,109000.0,1.40787129]
[1748308376618,0.41405751,109010.0,109000.0,1.40787129]
[1748308376817,0.41405751,109010.0,109000.0,1.40887129]
[1748308377533,0.41405751,109010.0,109000.0,1.31713129]
[1748308378124,1e-08,109010.0,109000.0,1.40887129]
[1748308378325,0.41292,109030.0,109020.0,0.1834008]
[1748308378621,0.575968,109040.0,109030.0,0.183384]
[1748308378823,1.338888,109040.0,109030.0,0.443384]
[1748308379022,1.44667174,109040.0,109030.0,0.26]
[1748308379227,1.44667174,109040.0,109030.0,0.14049694]
[1748308379629,1.44667174,109040.0,109030.0,0.32388094]
[1748308379929,1.46062233,109040.0,109030.0,0.32388094]
[1748308380630,1.49252233,109040.0,109030.0,0.32388094]
[1748308380832,1.49252233,109040.0,109030.0,0.14049694]
[1748308381231,1.49252233,109040.0,109030.0,0.32388094]
[1748308381425,1.49352233,109040.0,109030.0,0.32388094]
[1748308382732,1.49352233,109040.0,109030.0,0.14049694]
[1748308384726,1.72685363,109040.0,109030.0,0.14049694]
[1748308385529,1.63514163,109040.0,109030.0,0.14049694]
[1748308386235,1.57849391,109040.0,109030.0,0.14049694]
[1748308387634,1.92020591,109040.0,109030.0,0.14049694]
[1748308389231,1.67020591,109040.0,109030.0,0.14049694]
[1748308392238,1.69905777,109040.0,109030.0,0.14049694]
[1748308393646,1.69905777,109040.0,109030.0,0.11105454]
[1748308393838,0.0917125,109010.0,108990.0,0.01128784]
[1748308394143,1.87557824,109000.0,108990.0,0.14128784]
[1748308394336,2.31687824,109000.0,108990.0,0.14128784]
[1748308394642,2.31687824,109000.0,108990.0,0.13049694]
[1748308394643,2.45874406,109000.0,108990.0,0.13049694]
[1748308395032,2.55049206,109000.0,108990.0,0.13049694]
[1748308395243,2.55049206,109000.0,108990.0,0.13449694]
[1748308395636,2.6582758,109000.0,108990.0,0.13449694]
[1748308395835,2.55149206,109000.0,108990.0,0.13549694]
[1748308396048,2.55249206,109000.0,108990.0,0.15337159]
[1748308396448,1.46385399,109000.0,108990.0,0.14937159]
[1748308396649,2.40303773,109000.0,108990.0,0.13649694]
[1748308396946,2.40303773,109000.0,108990.0,0.13549694]
[1748308397141,1.57363773,109000.0,108990.0,0.13549694]
[1748308397335,1.57363773,109000.0,108990.0,0.31394824]
[1748308397336,1.8503745,109000.0,108990.0,0.31394824]
[1748308397542,1.8503745,109000.0,108990.0,0.41094824]
[1748308397742,1.4703745,109000.0,108990.0,0.22749694]
[1748308397939,1.54765824,109000.0,108990.0,0.41094824]
[1748308398251,1.54765824,109000.0,108990.0,0.40994824]
[1748308398438,1.55065824,109000.0,108990.0,0.41094824]
[1748308398639,0.6114345,109000.0,108990.0,0.51873198]
[1748308398835,1.4428745,109000.0,108990.0,0.51873198]
[1748308399145,1.0506745,109000.0,108990.0,0.51873198]
[1748308399342,1.0506745,109000.0,108990.0,0.52873198]
[1748308399942,1.4114745,109000.0,108990.0,0.52873198]
[1748308400746,1.51925824,109000.0,108990.0,0.23749694]
[1748308400941,1.51925824,109000.0,108990.0,0.16369694]
[1748308400942,1.55185824,109000.0,108990.0,0.16369694]
[1748308401949,1.55185824,109000.0,108990.0,0.19689694]
[1748308404643,1.55185824,109000.0,108990.0,0.16369694]
[1748308405950,1.55189824,109000.0,108990.0,0.16369694]
[1748308406138,1.55189824,109000.0,108990.0,0.19669694]
[1748308407051,1.55189824,109000.0,108990.0,0.02000004]
[1748308407247,0.1834513,108990.0,108980.0,0.00013751]
[1748308407453,0.86081004,108990.0,108980.0,0.12071042]
[1748308407845,0.0458683,108980.0,108950.0,0.17]
[1748308408144,0.0458683,108980.0,108950.0,0.09]
[1748308408145,1.12066928,108960.0,108950.0,0.09]
[1748308408351,1.95507273,108960.0,108950.0,0.09]
[1748308408546,2.13085538,108960.0,108950.0,0.09]
[1748308408853,2.12185117,108960.0,108950.0,0.09]
[1748308409050,2.13550536,108960.0,108950.0,0.3053187]
[1748308409247,2.52126536,108960.0,108950.0,0.1218]
[1748308409447,2.93430536,108960.0,108950.0,0.1218]
[1748308409752,2.93530536,108960.0,108950.0,0.1258]
[1748308409952,2.9454946,108960.0,108950.0,0.1258]
[1748308410138,2.95454111,108960.0,108950.0,0.1258]
[1748308410343,2.95454111,108960.0,108950.0,0.1268]
[1748308411050,2.95454111,108960.0,108950.0,0.1258]
[1748308411249,2.5334546,108960.0,108950.0,0.1589]
[1748308411452,2.9464946,108960.0,108950.0,0.1589]
[1748308411647,2.41548162,108960.0,108950.0,0.3424186]
[1748308411944,2.41552162,108960.0,108950.0,0.1589]
[1748308412152,2.5334946,108960.0,108950.0,0.1589]
[1748308412354,2.9465746,108960.0,108950.0,0.1589]
[1748308414156,2.5334946,108960.0,108950.0,0.1589]
[1748308414352,2.9465746,108960.0,108950.0,0.1589]
[1748308415455,2.5334946,108960.0,108950.0,0.1589]
[1748308415654,2.5662946,108960.0,108950.0,0.1589]
[1748308415843,2.9794146,108960.0,108950.0,0.1589]
[1748308416051,3.09738758,108960.0,108950.0,0.1589]
[1748308416254,3.12748758,108960.0,108950.0,0.097]
[1748308419161,2.89154162,108960.0,108950.0,0.097]
[1748308419361,3.12748758,108960.0,108950.0,0.097]
[1748308420258,3.12748758,108960.0,108950.0,0.11022676]
[1748308420453,2.1777946,108960.0,108950.0,0.11022676]
[1748308420759,2.9772546,108960.0,108950.0,0.11022676]
[1748308420958,2.9772546,108960.0,108950.0,0.17412676]
[1748308421954,2.1476946,108960.0,108950.0,0.17412676]
[1748308422150,2.9773346,108960.0,108950.0,0.17412676]
[1748308423961,2.9763346,108960.0,108950.0,0.17112676]
[1748308424152,2.9763346,108960.0,108950.0,0.17212676]
[1748308424354,3.09430758,108960.0,108950.0,0.10822676]
[1748308425061,3.09330758,108960.0,108950.0,0.10522676]
[1748308425359,2.9753346,108960.0,108950.0,0.10522676]
[1748308425758,2.9753346,108960.0,108950.0,0.16762676]
[1748308426359,3.09330758,108960.0,108950.0,0.16762676]
[1748308427262,2.9753746,108960.0,108950.0,0.16762676]
[1748308428561,2.85740162,108960.0,108950.0,0.16762676]
[1748308428754,3.09334758,108960.0,108950.0,0.10522676]
[1748308428954,2.02772162,108960.0,108950.0,0.10522676]
[1748308429161,2.9753746,108960.0,108950.0,0.16722676]
[1748308429959,2.1456946,108960.0,108950.0,0.16722676]
[1748308430169,1.02922162,108960.0,108950.0,0.71154536]
[1748308430758,0.19950162,108960.0,108950.0,0.71154536]
[1748308431255,0.61602162,108960.0,108950.0,0.71154536]
[1748308431459,0.83206563,108960.0,108950.0,0.82154536]
[1748308431763,1.01556743,108960.0,108950.0,0.82154536]
[1748308431961,1.01556743,108960.0,108950.0,0.92936482]
[1748308432260,1.01556743,108960.0,108950.0,0.82154536]
[1748308433065,0.00234563,108960.0,108950.0,1.27114482]
[1748308433263,0.41550563,108960.0,108950.0,1.25791806]
[1748308435164,0.41550563,108960.0,108950.0,1.26601836]
[1748308436365,0.59900733,108960.0,108950.0,1.27601836]
[1748308436666,0.59900733,108960.0,108950.0,1.26601836]
[1748308438159,0.59900733,108960.0,108950.0,1.01601836]
[1748308438360,0.41550563,108960.0,108950.0,1.01601836]
[1748308439466,0.00234563,108960.0,108950.0,1.01601836]
[1748308439667,0.59896733,108960.0,108950.0,0.9081989]
[1748308439865,0.41546563,108960.0,108950.0,1.01601836]
[1748308440473,0.41781126,108960.0,108950.0,1.01601836]
[1748308440765,0.60131296,108960.0,108950.0,1.01601836]
[1748308440968,0.72913242,108960.0,108950.0,0.8164189]
[1748308441169,0.76033242,108960.0,108950.0,0.46103405]
[1748308441364,0.65251296,108960.0,108950.0,0.46103405]
[1748308441563,1.01331296,108960.0,108950.0,0.46103405]
[1748308442072,1.01331296,108960.0,108950.0,0.47397098]
[1748308442571,1.09275296,108960.0,108950.0,0.47397098]
[1748308442761,0.23939296,108960.0,108950.0,0.46587068]
[1748308442964,0.62131296,108960.0,108950.0,0.46587068]
[1748308443163,0.60131296,108960.0,108950.0,0.46587068]
[1748308443965,0.00469126,108960.0,108950.0,0.93166645]
[1748308444173,0.41781126,108960.0,108950.0,0.87652832]
[1748308444367,0.43781126,108960.0,108950.0,0.87652832]
[1748308445174,0.43781126,108960.0,108950.0,0.88462862]
[1748308445669,0.02333137,108960.0,108950.0,0.88462862]
[1748308445872,0.00151511,108970.0,108960.0,0.1835017]
[1748308446073,0.41463511,108970.0,108960.0,1.1041344]
[1748308447075,0.44763511,108970.0,108960.0,1.1051344]
[1748308447273,0.41663511,108970.0,108960.0,1.1676344]
[1748308447473,0.00451511,108970.0,108960.0,1.1676344]
[1748308447678,0.41763511,108970.0,108960.0,1.1676344]
[1748308447977,0.41763511,108970.0,108960.0,1.17577265]
[1748308448864,0.41763511,108970.0,108960.0,0.93783995]
[1748308449072,0.41763511,108970.0,108960.0,1.05577265]
[1748308449265,0.44793511,108970.0,108960.0,1.05577265]
[1748308450581,0.63142001,108970.0,108960.0,1.05577265]
[1748308450768,1.58035271,108970.0,108960.0,0.46996116]
[1748308450970,1.50933271,108970.0,108960.0,0.25455946]
[1748308451167,2.28321271,108970.0,108960.0,0.10757359]
[1748308451373,2.28321271,108970.0,108960.0,0.02742489]
[1748308452281,2.33985291,108970.0,108960.0,0.01386543]
[1748308452677,2.33985291,108970.0,108940.0,0.30702961]
[1748308452678,0.1835186,108950.0,108940.0,0.30702961]
[1748308452978,1.7475986,108950.0,108940.0,0.44702961]
[1748308453182,1.7803986,108950.0,108940.0,0.44702961]
[1748308453682,1.8136986,108950.0,108940.0,0.44702961]
[1748308453873,1.8146986,108950.0,108940.0,0.44902961]
[1748308454074,1.8146986,108950.0,108940.0,0.45202961]
[1748308454683,1.8146986,108950.0,108940.0,0.17673751]
[1748308454878,1.9326313,108950.0,108940.0,0.14513751]
[1748308455081,1.9326313,108950.0,108940.0,0.32867291]
[1748308455783,1.8146986,108950.0,108940.0,0.32867291]
[1748308455974,1.8461986,108950.0,108940.0,0.32867291]
[1748308460287,1.8463186,108950.0,108940.0,0.32867291]
[1748308460486,1.4963186,108950.0,108940.0,0.32867291]
[1748308460786,1.6142513,108950.0,108940.0,0.32867291]
[1748308462679,1.4963186,108950.0,108940.0,0.32867291]
[1748308462880,1.4963186,108950.0,108940.0,0.36007291]
[1748308463189,1.1355186,108950.0,108940.0,0.36007291]
[1748308463388,0.2488186,108950.0,108940.0,0.39217291]
[1748308463595,1.0977786,108950.0,108940.0,0.53457291]
[1748308463888,0.2488186,108950.0,108940.0,1.01330561]
[1748308464082,1.0977786,108950.0,108940.0,1.01330561]
[1748308464387,0.91426,108950.0,108940.0,0.89537291]
[1748308464775,1.0977785,108950.0,108940.0,0.89537291]
[1748308464986,1.0977785,108950.0,108940.0,0.90079412]
[1748308465396,0.6846185,108950.0,108940.0,0.91365819]
[1748308465689,1.0977785,108950.0,108940.0,0.91365819]
[1748308466083,0.2488185,108950.0,108940.0,0.91365819]
[1748308466284,1.0977785,108950.0,108940.0,0.91365819]
[1748308466687,1.5765112,108950.0,108940.0,0.30482279]
[1748308466881,1.6091112,108950.0,108940.0,0.27342279]
[1748308467092,1.9699112,108950.0,108940.0,0.16342279]
[1748308467590,1.1209512,108950.0,108940.0,0.34695809]
[1748308467786,1.8519785,108950.0,108940.0,0.34695809]
[1748308467989,1.8519785,108950.0,108940.0,0.37795809]
[1748308468386,1.8519785,108950.0,108940.0,0.37253688]
[1748308469588,1.8519785,108950.0,108940.0,0.15800158]
[1748308469788,1.9699112,108950.0,108940.0,0.01286407]
[1748308470091,0.1835354,108940.0,108930.0,0.0040671]
[1748308470299,0.6622681,108940.0,108930.0,0.0040671]
[1748308470592,1.5112681,108940.0,108930.0,0.2976194]
[1748308470783,1.5112681,108940.0,108930.0,0.1782671]
[1748308470990,1.5112681,108940.0,108930.0,0.1140671]
[1748308471294,1.5112681,108940.0,108930.0,0.11]
[1748308471686,1.5112681,108940.0,108930.0,0.113]
[1748308472696,1.5122681,108940.0,108930.0,0.114]
[1748308473099,1.5741681,108940.0,108930.0,0.114]
[1748308474998,1.4562354,108940.0,108930.0,0.114]
[1748308475192,1.5741681,108940.0,108930.0,0.114]
[1748308476299,1.5741681,108940.0,108930.0,0.1777]
[1748308476903,0.6072354,108940.0,108930.0,0.1777]